lending/lending_fUSD_20241229
["ID","MTS","AMOUNT","RATE_DAILY","PERIOD"]
[347033575,1735476650467,-500.0,0.00012761,2]
[347033577,1735476650476,-500.0,0.00012761,2]
[347033579,1735476650486,-300.0,0.00012761,2]
[347033581,1735476650496,-500.0,0.00012761,2]
[347033583,1735476650505,-500.0,0.00012761,2]
[347033585,1735476650514,-500.0,0.00012761,2]
[347033587,1735476650524,-500.0,0.00012761,2]
[347033589,1735476650533,-500.0,0.00012761,2]
[347033591,1735476650543,-500.0,0.00012761,2]
[347033593,1735476650552,-500.0,0.00012761,2]
[347033595,1735476650561,-150.0,0.00012761,2]
[347033597,1735476650570,-500.0,0.00012761,2]
[347033599,1735476650580,-500.0,0.00012761,2]
[347033601,1735476650589,-500.0,0.00012761,2]
[347033603,1735476650599,-500.0,0.00012761,2]
[347033605,1735476650609,-500.0,0.00012761,2]
[347033607,1735476650618,-500.0,0.00012761,2]
[347033609,1735476650628,-500.88357485,0.00012761,2]
[347033611,1735476650638,-500.0,0.00012761,2]
[347033613,1735476650647,-500.0,0.00012761,2]
[347033615,1735476650656,-500.0,0.00012761,2]
[347033617,1735476650665,-500.0,0.00012761,2]
[347033619,1735476650674,-500.0,0.00012761,2]
[347033621,1735476650683,-500.0,0.00012761,2]
[347033623,1735476650692,-500.0,0.00012761,2]
[347033625,1735476650701,-500.0,0.00012761,2]
[347033627,1735476650710,-500.0,0.00012761,2]
[347033629,1735476650720,-500.70864895,0.00012761,2]
[347033631,1735476650729,-500.0,0.00012761,2]
[347033633,1735476650739,-502.17542097,0.00012761,2]
[347033635,1735476650752,-500.0,0.00012761,2]
[347033637,1735476650762,-500.0,0.00012761,2]
[347033639,1735476650771,-500.0,0.00012761,2]
[347033641,1735476650780,-630.25242221,0.00012761,2]
[347033643,1735476650790,-500.0,0.00012761,2]
[347033645,1735476650799,-500.0,0.00012761,2]
[347033647,1735476650809,-500.0,0.00012761,2]
[347033649,1735476650818,-500.0,0.00012761,2]
[347033651,1735476650827,-500.0,0.00012761,2]
[347033653,1735476650837,-500.0,0.00012761,2]
[347033655,1735476650847,-500.0,0.00012761,2]
[347033657,1735476650856,-500.0,0.00012761,2]
[347033659,1735476650865,-500.0,0.00012761,2]
[347033661,1735476650876,-500.0,0.00012761,2]
[347033663,1735476650885,-500.0,0.00012761,2]
[347033665,1735476650895,-500.0,0.00012761,2]
[347033667,1735476650904,-500.0,0.00012761,2]
[347033669,1735476650914,-500.0,0.00012761,2]
[347033670,1735476650923,-500.0,0.00012761,2]
[347033671,1735476650932,-500.0,0.00012761,2]
[347033672,1735476650942,-500.0,0.00012761,2]
[347033673,1735476650951,-795.26,0.00012761,2]
[347033674,1735476650962,-591.45,0.00012761,2]
[347033675,1735476650971,-500.0,0.00012761,2]
[347033677,1735476650982,-545.32,0.00012761,2]
[347033679,1735476650991,-500.0,0.00012761,2]
[347033681,1735476651000,-500.0,0.00012761,2]
[347033683,1735476651010,-566.56,0.00012761,2]
[347033685,1735476651019,-500.0,0.00012761,2]
[347033687,1735476651028,-780.71,0.00012761,2]
[347033689,1735476651038,-1468.87,0.00012761,2]
[347033691,1735476651047,-509.07,0.00012761,2]
[347033693,1735476651056,-500.0,0.00012761,2]
[347033695,1735476651065,-1038.95,0.00012761,2]
[347033697,1735476651074,-500.0,0.00012761,2]
[347033699,1735476651084,-1027.18,0.00012761,2]
[347033701,1735476651093,-500.0,0.00012761,2]
[347033703,1735476651102,-500.0,0.00012761,2]
[347033705,1735476651111,-669.47,0.00012761,2]
[347033707,1735476651121,-1156.5,0.00012761,2]
[347033709,1735476651130,-647.52,0.00012761,2]
[347033711,1735476651139,-500.0,0.00012761,2]
[347033713,1735476651148,-559.66,0.00012761,2]
[347033715,1735476651156,-500.0,0.00012761,2]
[347033717,1735476651165,-500.0,0.00012761,2]
[347033719,1735476651174,-846.34,0.00012761,2]
[347033721,1735476651183,-992.88,0.00012761,2]
[347033723,1735476651192,-618.56,0.00012761,2]
[347033725,1735476651201,-1119.8,0.00012761,2]
[347033727,1735476651210,-500.0,0.00012761,2]
[347033729,1735476651220,-1274.94,0.00012761,2]
[347033731,1735476651229,-500.0,0.00012761,2]
[347033733,1735476651238,-500.0,0.00012761,2]
[347033735,1735476651247,-807.55,0.00012761,2]
[347033737,1735476651257,-500.0,0.00012761,2]
[347033740,1735476651266,-500.0,0.00012761,2]
[347033742,1735476651276,-765.32,0.00012761,2]
[347033744,1735476651285,-500.0,0.00012761,2]
[347033746,1735476651295,-500.0,0.00012761,2]
[347033748,1735476651304,-500.0,0.00012761,2]
[347033750,1735476651313,-500.0,0.00012761,2]
[347033751,1735476651322,-500.0,0.00012761,2]
[347033754,1735476651331,-1275.04,0.00012761,2]
[347033756,1735476651340,-1149.38,0.00012761,2]
[347033758,1735476651350,-4273.31,0.00012761,2]
[347033760,1735476651360,-925.69,0.00012761,2]
[347033762,1735476651369,-993.58,0.00012761,2]
[347033764,1735476651379,-2196.53,0.00012761,2]
[347033766,1735476651389,-1621.87,0.00012761,2]
[347033768,1735476651398,-2395.45,0.00012761,2]
[347033770,1735476651407,-500.0,0.00012761,2]
[347033772,1735476651417,-1517.93,0.00012761,2]
[347033774,1735476651426,-2848.67,0.00012761,2]
[347033776,1735476651435,-1625.33,0.00012761,2]
[347033778,1735476651444,-500.0,0.00012761,2]
[347033780,1735476651455,-1893.83,0.00012761,2]
[347033782,1735476651464,-3418.08,0.00012761,2]
[347033784,1735476651473,-1990.46,0.00012761,2]
[347033786,1735476651482,-8666.03,0.00012761,2]
[347033788,1735476651491,-2248.45,0.00012761,2]
[347033790,1735476651500,-3299.48,0.00012761,2]
[347033792,1735476651509,-4008.62,0.00012761,2]
[347033794,1735476651518,-496.76,0.00012761,2]
[347033796,1735476651527,-17041.24,0.00012762,2]
[347033798,1735476651536,-1915.51,0.00012762,2]
[347033800,1735476651545,-1130.25,0.00012762,2]
[347033802,1735476651555,-507.63,0.00012762,2]
[347033804,1735476651564,-1032.79657169,0.00012762,2]
[347033833,1735476652137,-1115.76342831,0.00012762,2]
[347033834,1735476652148,-500.0,0.00012762,2]
[347033835,1735476652157,-9200.85016077,0.00012762,2]
[347033836,1735476652172,-4184.15983923,0.00012762,2]
[347033837,1735476652183,-167.44020077,0.00012762,2]
[347033838,1735476652193,-332.55979923,0.00012762,2]
[347033839,1735476652202,-952.64,0.00012762,2]
[347033840,1735476652211,-1311.69,0.00012762,2]
[347033841,1735476652220,-887.14,0.00012762,2]
[347033842,1735476652229,-2860.45,0.00012762,2]
[347033843,1735476652239,-2057.58,0.00012762,2]
[347033844,1735476652248,-500.0,0.00012762,2]
[347033845,1735476652257,-1000.0,0.00012762,2]
[347033846,1735476652266,-878.76,0.00012762,2]
[347033847,1735476652274,-500.0,0.00012762,2]
[347033848,1735476652283,-595.58018385,0.00012762,2]
[347033870,1735476652831,-2504.4,0.0001276,2]
[347033871,1735476652841,-1628.95981615,0.00012762,2]
[347033872,1735476652850,-2144.77,0.00012762,2]
[347033873,1735476652859,-493.92,0.00012763,2]
[347033874,1735476652869,-1893.83,0.00012785,2]
[347033875,1735476652879,-2145.018,0.00012794,2]
[347033876,1735476652888,-154.494,0.00012794,2]
[347033877,1735476652897,-500.0,0.00012849,2]
[347033878,1735476652906,-500.0,0.00012849,2]
[347033879,1735476652915,-39627.0,0.000129,2]
[347033880,1735476652924,-347.49524198,0.000129,2]
[347033882,1735476652934,-181.85959431,0.000129,2]
[347033884,1735476652943,-1934.62413114,0.000129,2]
[347033886,1735476652951,-500.0,0.00012973,2]
[347033888,1735476652961,-5000.0,0.00012997,2]
[347033889,1735476652970,-660.0,0.00012998,2]
[347033891,1735476652979,-5000.0,0.00012998,2]
[347033892,1735476652988,-500.0,0.00012998,2]
[347033893,1735476652997,-5833.59032872,0.00012999,2]
[347033894,1735476653005,-500.0,0.00012999,2]
[347033895,1735476653014,-500.0,0.00012999,2]
[347033896,1735476653023,-500.0,0.00012999,2]
[347033897,1735476653032,-500.0,0.00012999,2]
[347033898,1735476653041,-500.0,0.00012999,2]
[347033899,1735476653051,-307.44531334,0.00012999,2]
[347033900,1735476653060,-500.0,0.00012999,2]
[347033901,1735476653069,-911.78,0.00012999,2]
[347033902,1735476653078,-1893.83,0.00012999,2]
[347033903,1735476653087,-1893.83,0.00012999,2]
[347033904,1735476653096,-1893.83,0.00012999,2]
[347033905,1735476653106,-1893.83,0.00012999,2]
[347033906,1735476653115,-1893.83,0.00012999,2]
[347033907,1735476653124,-1893.83,0.00012999,2]
[347033908,1735476653133,-1893.83,0.00012999,2]
[347033909,1735476653142,-1893.83,0.00012999,2]
[347033910,1735476653152,-1893.83,0.00012999,2]
[347033911,1735476653161,-1893.83,0.00012999,2]
[347033912,1735476653170,-1893.83,0.00012999,2]
[347033913,1735476653179,-1893.83,0.00012999,2]
[347033914,1735476653188,-1893.83,0.00012999,2]
[347033915,1735476653197,-1893.83,0.00012999,2]
[347033916,1735476653342,-1893.83,0.00012999,2]
[347033917,1735476653352,-1893.83,0.00012999,2]
[347033918,1735476653361,-1893.83,0.00012999,2]
[347033919,1735476653371,-1893.83,0.00012999,2]
[347033920,1735476653380,-1893.83,0.00012999,2]
[347033921,1735476653389,-1893.83,0.00012999,2]
[347033922,1735476653398,-1893.83,0.00012999,2]
[347033923,1735476653407,-2428.42616814,0.00013,2]
[347033924,1735476653416,-157674.305587,0.00013,2]
[347033925,1735476653426,-954809.86196704,0.00013,2]
[347033926,1735476653482,-451.15297999,0.00013,2]
[347033930,1735476861285,162.7,0.00010137,2]
[347033931,1735476868899,344.96,0.00010078,2]
[347033935,1735477286591,380.18,0.00016658,30]
[347033936,1735477438294,500.0,0.00024731,120]
[347033937,1735477443838,500.0,0.00024731,120]
[347033938,1735477494351,1000.0,0.00021,120]
[347034215,1735477726986,500.0,0.00024731,120]
[347034217,1735477808311,369.17,9.681e-05,2]
[347034219,1735477831019,213.62,0.00010137,2]
[347034229,1735477832076,-606.1999975,0.00011615,2]
[347034230,1735477832094,-274.72165919,0.00011615,2]
[347034231,1735477832148,-805.61696077,0.00011615,2]
[347034232,1735477832201,-313.46138254,0.00011615,2]
[347034233,1735477832219,-166.66666666,0.00011618,2]
[347034234,1735477832233,-57.03729062,0.00011663,2]
[347034235,1735477832266,-550.07773994,0.00011663,2]
[347034236,1735477832366,-892.88496944,0.00011663,2]
[347034237,1735477832381,-150.0,0.00011668,2]
[347034238,1735477832397,-777.07903123,0.00011718,2]
[347034240,1735477832419,-3065.9062445,0.00011718,2]
[347034242,1735477832434,-250.0,0.00011718,2]
[347034244,1735477832448,-250.0,0.00011782,2]
[347034247,1735477832463,-1000.0,0.0001186,2]
[347034250,1735477832478,-354.62,0.000119,2]
[347034252,1735477832493,-4482.0,0.00011926,2]
[347034255,1735477832507,-15776.36084346,0.0001194,2]
[347034294,1735477837978,-656.07915654,0.0001194,2]
[347034295,1735477837988,-369.17,0.00011945,2]
[347034296,1735477837997,-366.84,0.00011949,2]
[347034297,1735477838007,-300.0,0.00011981,2]
[347034298,1735477838017,-500.0,0.00012035,2]
[347034299,1735477838026,-500.0,0.0001211,2]
[347034300,1735477838036,-168.34,0.00012184,2]
[347034301,1735477838045,-265.146,0.0001235,2]
[347034302,1735477838055,-293.0,0.00012356,2]
[347034303,1735477838065,-262.16026559,0.00012434,2]
[347034304,1735477838075,-262.16026559,0.0001245,2]
[347034305,1735477838085,-262.16026559,0.00012459,2]
[347034306,1735477838095,-262.16026559,0.00012463,2]
[347034307,1735477838104,-262.16026559,0.00012469,2]
[347034308,1735477838114,-262.16026559,0.00012469,2]
[347034309,1735477838124,-880.6151479,0.00012559,2]
[347034310,1735477838133,-684.46262664,0.0001256,2]
[347034311,1735477838172,-607.80260996,0.0001256,2]
[347034312,1735477838232,-2513.3293634,0.0001256,2]
[347034313,1735477838242,-1992.5722,0.0001256,2]
[347034314,1735477838252,-933.3431,0.0001256,2]
[347034315,1735477838263,-18164.4393,0.0001256,2]
[347034316,1735477838272,-9161.3849,0.00012658,2]
[347034317,1735477838282,-183.4169,0.00012659,2]
[347034318,1735477838291,-1000.0,0.00012659,2]
[347034319,1735477838300,-2500.0,0.00012659,2]
[347034320,1735477838309,-1379.2593326,0.0001266,2]
[347034323,1735477838320,-25646.2740812,0.0001266,2]
[347034337,1735477840200,-2500.0,0.00012658,2]
[347034338,1735477840210,-734.54977232,0.00012659,2]
[347034339,1735477840228,-863.781,0.00012659,2]
[347034340,1735477840258,-3401.66922768,0.00012659,2]
[347034341,1735477840267,-48542.5846862,0.0001266,2]
[347034342,1735477840276,-2348.77,0.00012758,2]
[347034343,1735477840285,-500.0,0.00012758,2]
[347034344,1735477840295,-1102.49,0.00012758,2]
[347034345,1735477840304,-4274.51,0.00012758,2]
[347034346,1735477840313,-1779.02,0.00012758,2]
[347034347,1735477840323,-6675.96,0.00012758,2]
[347034348,1735477840332,-3145.01,0.00012758,2]
[347034349,1735477840341,-5682.37,0.00012758,2]
[347034350,1735477840350,-3093.3,0.00012758,2]
[347034351,1735477840360,-2180.69,0.00012758,2]
[347034352,1735477840371,-1225.4307551,0.00012758,2]
[347034353,1735477840383,-1222.9492449,0.00012758,2]
[347034354,1735477840392,-1701.86,0.00012758,2]
[347034355,1735477840401,-4177.22,0.00012758,2]
[347034356,1735477840410,-500.0,0.00012758,2]
[347034357,1735477840420,-2952.07,0.00012758,2]
[347034358,1735477840430,-740.96,0.00012758,2]
[347034359,1735477840440,-6200.58,0.00012758,2]
[347034360,1735477840451,-10248.06,0.00012758,2]
[347034361,1735477840460,-1215.86,0.00012758,2]
[347034363,1735477840473,-2668.05,0.00012758,2]
[347034365,1735477840482,-3305.71305764,0.00012758,2]
[347034368,1735477840497,-6446.70790503,0.00012758,2]
[347034374,1735477840546,-2774.0273353,0.00012758,2]
[347034641,1735477843106,-2158.21170203,0.00012758,2]
[347034643,1735477843116,-356.15917971,0.00012758,2]
[347034944,1735477846166,-3730.46082029,0.00012758,2]
[347034946,1735477846177,-1835.58,0.00012758,2]
[347034948,1735477846187,-7026.46,0.00012758,2]
[347034950,1735477846196,-2472.17,0.00012758,2]
[347034952,1735477846205,-2496.9,0.00012758,2]
[347034954,1735477846218,-4130.55,0.00012758,2]
[347034956,1735477846228,-2503.04107745,0.00012758,2]
[347034958,1735477846240,-4341.71892255,0.00012758,2]
[347034960,1735477846249,-818.41,0.00012758,2]
[347034962,1735477846259,-854.58,0.00012758,2]
[347034964,1735477846268,-500.0,0.00012758,2]
[347034966,1735477846277,-500.0,0.00012758,2]
[347034968,1735477846286,-500.0,0.00012758,2]
[347034970,1735477846296,-1751.89,0.00012758,2]
[347034972,1735477846306,-853.59,0.00012758,2]
[347034974,1735477846315,-3167.23,0.00012758,2]
[347034976,1735477846325,-862.92,0.00012758,2]
[347034978,1735477846334,-1505.02,0.00012758,2]
[347034980,1735477846343,-2392.55,0.00012758,2]
[347034982,1735477846352,-500.0,0.00012758,2]
[347034983,1735477846361,-2346.22,0.00012758,2]
[347034985,1735477846370,-500.0,0.00012758,2]
[347034987,1735477846379,-500.0,0.00012758,2]
[347034989,1735477846389,-495.31,0.00012759,2]
[347034991,1735477846399,-500.99,0.00012759,2]
[347034993,1735477846408,-500.0,0.00012759,2]
[347034995,1735477846418,-500.0,0.00012759,2]
[347034997,1735477846428,-500.0,0.00012759,2]
[347034999,1735477846437,-500.0,0.00012759,2]
[347035001,1735477846446,-500.0,0.00012759,2]
[347035003,1735477846456,-500.0,0.00012759,2]
[347035005,1735477846465,-500.0,0.00012759,2]
[347035007,1735477846475,-502.60326522,0.00012759,2]
[347035009,1735477846484,-500.0,0.00012759,2]
[347035011,1735477846494,-500.0,0.00012759,2]
[347035013,1735477846503,-500.0,0.00012759,2]
[347035015,1735477846513,-500.0,0.00012759,2]
[347035017,1735477846522,-500.0,0.00012759,2]
[347035019,1735477846532,-500.0,0.00012759,2]
[347035021,1735477846541,-500.0,0.00012759,2]
[347035023,1735477846550,-500.0,0.00012759,2]
[347035025,1735477846560,-500.0,0.00012759,2]
[347035027,1735477846568,-500.0,0.00012759,2]
[347035029,1735477846578,-500.0,0.00012759,2]
[347035031,1735477846587,-500.0,0.00012759,2]
[347035033,1735477846597,-500.0,0.00012759,2]
[347035035,1735477846606,-500.0,0.00012759,2]
[347035037,1735477846616,-500.0,0.00012759,2]
[347035038,1735477846626,-500.0,0.00012759,2]
[347035039,1735477846635,-500.0,0.00012759,2]
[347035040,1735477846644,-619.89,0.00012759,2]
[347035041,1735477846653,-500.0,0.00012759,2]
[347035042,1735477846663,-500.0,0.00012759,2]
[347035043,1735477846674,-500.0,0.00012759,2]
[347035044,1735477846683,-500.0,0.00012759,2]
[347035045,1735477846692,-500.0,0.00012759,2]
[347035047,1735477846702,-500.0,0.00012759,2]
[347035049,1735477846711,-500.0,0.00012759,2]
[347035051,1735477846721,-500.0,0.00012759,2]
[347035053,1735477846731,-500.0,0.00012759,2]
[347035055,1735477846741,-500.0,0.00012759,2]
[347035057,1735477846750,-500.0,0.00012759,2]
[347035059,1735477846759,-500.0,0.00012759,2]
[347035061,1735477846769,-500.0,0.00012759,2]
[347035063,1735477846778,-500.0,0.00012759,2]
[347035065,1735477846787,-500.0,0.00012759,2]
[347035067,1735477846796,-500.0,0.00012759,2]
[347035069,1735477846806,-500.0,0.00012759,2]
[347035071,1735477846815,-500.0,0.00012759,2]
[347035073,1735477846825,-500.0,0.00012759,2]
[347035075,1735477846834,-500.0,0.00012759,2]
[347035077,1735477846844,-500.0,0.00012759,2]
[347035079,1735477846853,-500.0,0.00012759,2]
[347035081,1735477846862,-500.0,0.00012759,2]
[347035083,1735477846871,-500.0,0.00012759,2]
[347035085,1735477846881,-500.0,0.00012759,2]
[347035087,1735477846891,-500.0,0.00012759,2]
[347035089,1735477846900,-500.0,0.00012759,2]
[347035091,1735477846909,-500.0,0.00012759,2]
[347035093,1735477846918,-500.0,0.00012759,2]
[347035095,1735477846927,-500.0,0.00012759,2]
[347035097,1735477846936,-500.0,0.00012759,2]
[347035099,1735477846946,-500.0,0.00012759,2]
[347035101,1735477846955,-500.0,0.00012759,2]
[347035103,1735477846964,-500.0,0.00012759,2]
[347035105,1735477846974,-500.0,0.00012759,2]
[347035107,1735477846983,-500.0,0.00012759,2]
[347035109,1735477846992,-500.0,0.00012759,2]
[347035111,1735477847001,-500.0,0.00012759,2]
[347035113,1735477847011,-500.0,0.00012759,2]
[347035115,1735477847020,-500.0,0.00012759,2]
[347035117,1735477847029,-500.0,0.00012759,2]
[347035119,1735477847038,-500.0,0.00012759,2]
[347035121,1735477847047,-500.0,0.00012759,2]
[347035123,1735477847056,-500.0,0.00012759,2]
[347035125,1735477847066,-500.0,0.00012759,2]
[347035127,1735477847075,-500.0,0.00012759,2]
[347035129,1735477847084,-500.0,0.00012759,2]
[347035131,1735477847093,-500.0,0.00012759,2]
[347035133,1735477847102,-500.0,0.00012759,2]
[347035135,1735477847112,-500.0,0.00012759,2]
[347035137,1735477847122,-503.5936642,0.00012759,2]
[347035139,1735477847131,-500.0,0.00012759,2]
[347035141,1735477847140,-500.0,0.00012759,2]
[347035143,1735477847149,-500.0,0.00012759,2]
[347035145,1735477847158,-500.0,0.00012759,2]
[347035147,1735477847167,-500.0,0.00012759,2]
[347035149,1735477847177,-500.0,0.00012759,2]
[347035150,1735477847186,-500.0,0.00012759,2]
[347035152,1735477847195,-500.0,0.00012759,2]
[347035155,1735477847205,-500.0,0.00012759,2]
[347035157,1735477847214,-500.0,0.00012759,2]
[347035158,1735477847223,-500.0,0.00012759,2]
[347035160,1735477847232,-500.0,0.00012759,2]
[347035162,1735477847242,-500.0,0.00012759,2]
[347035164,1735477847250,-500.0,0.00012759,2]
[347035166,1735477847259,-502.3941772,0.00012759,2]
[347035168,1735477847268,-500.0,0.00012759,2]
[347035170,1735477847278,-500.0,0.00012759,2]
[347035172,1735477847287,-500.0,0.00012759,2]
[347035174,1735477847297,-500.0,0.00012759,2]
[347035176,1735477847306,-500.0,0.00012759,2]
[347035178,1735477847315,-500.0,0.00012759,2]
[347035180,1735477847325,-500.0,0.00012759,2]
[347035182,1735477847334,-500.0,0.00012759,2]
[347035184,1735477847343,-500.0,0.00012759,2]
[347035186,1735477847352,-500.0,0.00012759,2]
[347035188,1735477847362,-500.0,0.00012759,2]
[347035190,1735477847371,-500.0,0.00012759,2]
[347035192,1735477847383,-500.0,0.00012759,2]
[347035194,1735477847393,-500.0,0.00012759,2]
[347035196,1735477847402,-500.0,0.00012759,2]
[347035198,1735477847412,-500.0,0.00012759,2]
[347035200,1735477847421,-500.0,0.00012759,2]
[347035202,1735477847430,-500.0,0.00012759,2]
[347035204,1735477847439,-500.0,0.00012759,2]
[347035206,1735477847449,-500.0,0.00012759,2]
[347035208,1735477847459,-500.0,0.00012759,2]
[347035210,1735477847468,-500.0,0.00012759,2]
[347035212,1735477847477,-500.0,0.00012759,2]
[347035214,1735477847486,-500.0,0.00012759,2]
[347035216,1735477847496,-500.0,0.00012759,2]
[347035218,1735477847505,-500.0,0.00012759,2]
[347035220,1735477847514,-500.0,0.00012759,2]
[347035222,1735477847524,-500.0,0.00012759,2]
[347035224,1735477847533,-503.12453851,0.00012759,2]
[347035226,1735477847542,-500.0,0.00012759,2]
[347035228,1735477847551,-500.0,0.00012759,2]
[347035230,1735477847560,-500.0,0.00012759,2]
[347035232,1735477847569,-500.0,0.00012759,2]
[347035234,1735477847578,-500.0,0.00012759,2]
[347035236,1735477847588,-511.27703423,0.00012759,2]
[347035238,1735477847598,-500.0,0.00012759,2]
[347035240,1735477847607,-500.0,0.00012759,2]
[347035242,1735477847616,-563.54,0.00012759,7]
[347035244,1735477847627,-500.0,0.00012759,2]
[347035246,1735477847636,-500.0,0.00012759,2]
[347035248,1735477847646,-500.0,0.00012759,2]
[347035250,1735477847655,-500.0,0.00012759,2]
[347035252,1735477847665,-500.0,0.00012759,2]
[347035254,1735477847674,-500.0,0.00012759,2]
[347035256,1735477847683,-500.0,0.00012759,2]
[347035258,1735477847692,-500.0,0.00012759,2]
[347035259,1735477847701,-2343.95,0.00012759,2]
[347035261,1735477847710,-500.0,0.00012759,2]
[347035263,1735477847720,-500.0,0.00012759,2]
[347035265,1735477847729,-500.0,0.00012759,2]
[347035268,1735477847739,-500.0,0.00012759,2]
[347035270,1735477847749,-500.0,0.00012759,2]
[347035272,1735477847758,-500.0,0.00012759,2]
[347035273,1735477847767,-500.0,0.00012759,2]
[347035275,1735477847776,-500.0,0.00012759,2]
[347035278,1735477847786,-500.0,0.00012759,2]
[347035280,1735477847795,-500.0,0.00012759,2]
[347035282,1735477847804,-500.0,0.00012759,2]
[347035284,1735477847813,-500.0,0.00012759,2]
[347035286,1735477847822,-1503.63,0.00012759,2]
[347035288,1735477847832,-500.0,0.00012759,2]
[347035290,1735477847841,-500.0,0.00012759,2]
[347035292,1735477847850,-500.0,0.00012759,2]
[347035294,1735477847859,-500.0,0.00012759,2]
[347035313,1735477848026,-500.0,0.00012759,2]
[347035315,1735477848036,-500.0,0.00012759,2]
[347035316,1735477848046,-500.0,0.00012759,2]
[347035318,1735477848054,-500.0,0.00012759,2]
[347035320,1735477848064,-500.0,0.00012759,2]
[347035322,1735477848074,-500.0,0.00012759,2]
[347035324,1735477848083,-500.0,0.00012759,2]
[347035326,1735477848093,-500.0,0.00012759,2]
[347035328,1735477848103,-500.0,0.00012759,2]
[347035330,1735477848112,-500.0,0.00012759,2]
[347035332,1735477848121,-500.0,0.00012759,2]
[347035334,1735477848132,-650.62,0.00012759,2]
[347035336,1735477848142,-500.0,0.00012759,2]
[347035338,1735477848152,-500.0,0.00012759,2]
[347035340,1735477848162,-500.0,0.00012759,2]
[347035341,1735477848171,-500.0,0.00012759,2]
[347035343,1735477848181,-500.0,0.00012759,2]
[347035345,1735477848190,-500.0,0.00012759,2]
[347035348,1735477848200,-500.0,0.00012759,2]
[347035349,1735477848210,-1494.97,0.00012759,2]
[347035351,1735477848222,-500.0,0.00012759,2]
[347035353,1735477848232,-1050.17,0.00012759,2]
[347035355,1735477848242,-632.15,0.00012759,2]
[347035357,1735477848251,-500.0,0.00012759,2]
[347035359,1735477848260,-500.0,0.00012759,2]
[347035361,1735477848271,-500.0,0.00012759,2]
[347035363,1735477848280,-1101.77,0.00012759,2]
[347035365,1735477848290,-500.0,0.00012759,2]
[347035367,1735477848300,-2987.06,0.00012759,2]
[347035369,1735477848311,-562.8,0.00012759,2]
[347035371,1735477848320,-500.0,0.00012759,2]
[347035373,1735477848330,-500.0,0.00012759,2]
[347035375,1735477848340,-500.0,0.00012759,2]
[347035377,1735477848350,-591.62,0.00012759,2]
[347035379,1735477848360,-500.0,0.00012759,2]
[347035380,1735477848370,-1452.11,0.00012759,2]
[347035383,1735477848382,-500.0,0.00012759,2]
[347035385,1735477848392,-500.0,0.00012759,2]
[347035386,1735477848402,-500.0,0.00012759,2]
[347035388,1735477848412,-500.0,0.00012759,2]
[347035390,1735477848422,-500.0,0.00012759,2]
[347035392,1735477848431,-500.0,0.00012759,2]
[347035394,1735477848440,-1024.39,0.00012759,2]
[347035396,1735477848449,-500.0,0.00012759,2]
[347035398,1735477848459,-500.0,0.00012759,2]
[347035400,1735477848468,-1579.43,0.00012759,2]
[347035402,1735477848478,-500.0,0.00012759,2]
[347035404,1735477848487,-500.0,0.00012759,2]